bitfinex/quotes_BTCUSD_20250326
["timestamp","ask_amount","ask_price","bid_price","bid_amount"]
[1743016716769,0.005,86239.0,86234.0,0.72853764]
[1743016717017,0.005,86239.0,86234.0,0.72253764]
[1743016717640,0.005,86239.0,86234.0,0.95446364]
[1743016717856,0.005,86239.0,86234.0,0.94846364]
[1743016718055,0.005,86239.0,86234.0,0.60828]
[1743016718405,0.005,86239.0,86234.0,0.61428]
[1743016718632,0.005,86239.0,86234.0,0.60228]
[1743016719028,0.005,86239.0,86234.0,0.61428]
[1743016719804,0.005,86235.0,86234.0,0.61428]
[1743016720004,0.005,86235.0,86234.0,0.75268]
[1743016721006,0.005,86235.0,86234.0,0.74668]
[1743016721210,0.236924,86235.0,86234.0,0.74668]
[1743016721420,0.24852,86235.0,86234.0,0.60828]
[1743016721624,0.36277764,86235.0,86234.0,0.60828]
[1743016721786,0.36277764,86235.0,86234.0,0.61428]
[1743016722388,0.36277764,86235.0,86234.0,0.60828]
[1743016722650,0.45434452,86235.0,86234.0,0.60228]
[1743016722848,0.55744774,86235.0,86234.0,0.60828]
[1743016723060,0.55744774,86235.0,86234.0,0.61328]
[1743016723466,0.46588086,86235.0,86234.0,0.61328]
[1743016724054,0.46588086,86235.0,86234.0,0.011]
[1743016724253,0.46588086,86235.0,86234.0,0.005]
[1743016724658,0.60428086,86235.0,86234.0,0.011]
[1743016724853,0.46588086,86235.0,86234.0,0.011]
[1743016725019,0.44447764,86235.0,86234.0,0.011]
[1743016725836,0.46264403,86235.0,86234.0,0.011]
[1743016726334,0.38094403,86235.0,86234.0,0.011]
[1743016731587,0.38094403,86235.0,86234.0,0.0111693]
[1743016731798,0.68094403,86235.0,86234.0,0.0111693]
[1743016732047,0.553531,86231.0,86230.0,7e-08]
[1743016732270,0.88588864,86231.0,86230.0,7e-08]
[1743016732478,1.00014628,86231.0,86230.0,7e-08]
[1743016732689,1.04914628,86231.0,86230.0,7e-08]
[1743016733711,1.04914628,86231.0,86221.0,7e-08]
[1743016733712,0.553556,86222.0,86221.0,7e-08]
[1743016733910,1.24635449,86222.0,86221.0,8.3e-07]
[1743016734132,1.26777463,86222.0,86221.0,8.3e-07]
[1743016734868,1.28917211,86222.0,86221.0,8.3e-07]
[1743016735069,1.30734424,86222.0,86221.0,8.3e-07]
[1743016735471,1.31594963,86222.0,86221.0,8.3e-07]
[1743016736131,1.29455215,86222.0,86221.0,8.3e-07]
[1743016737316,1.43299215,86222.0,86221.0,8.3e-07]
[1743016737516,1.43299215,86222.0,86190.0,0.6024]
[1743016737517,0.248644,86191.0,86190.0,0.6024]
[1743016737761,0.36290164,86191.0,86190.0,0.60252556]
[1743016738319,0.3810758,86191.0,86190.0,0.60252556]
[1743016739298,0.3810758,86191.0,86190.0,0.60752556]
[1743016739442,0.3810758,86191.0,86190.0,0.60252556]
[1743016739855,0.3810758,86191.0,86190.0,0.60552556]
[1743016740278,0.02317416,86191.0,86190.0,0.666095]
[1743016740478,0.02317416,86191.0,86190.0,0.60952556]
[1743016741147,0.02317416,86191.0,86190.0,0.60652556]
[1743016741148,0.01817416,86191.0,86190.0,0.60652556]
[1743016741361,0.01817416,86191.0,86190.0,1.2644302]
[1743016741534,0.005,86206.0,86200.0,0.232018]
[1743016741734,0.005,86206.0,86201.0,0.13844]
[1743016742186,0.01816979,86205.0,86201.0,0.13844]
[1743016742620,0.005,86206.0,86201.0,0.13844]
[1743016742749,0.006,86206.0,86201.0,0.13844]
[1743016742949,0.005,86206.0,86201.0,0.13744]
[1743016743460,0.005,86209.0,86201.0,0.406402]
[1743016743686,0.005,86212.0,86205.0,0.232004]
[1743016743887,0.005,86212.0,86206.0,0.07881973]
[1743016744270,0.005,86212.0,86206.0,0.0765]
[1743016744424,0.005,86212.0,86207.0,0.06137586]
[1743016744895,0.005,86212.0,86206.0,0.0765]
[1743016745043,0.005,86212.0,86206.0,0.0755]
[1743016745255,0.005,86212.0,86206.0,0.0778197]
[1743016745468,0.005,86216.0,86206.0,0.0778197]
[1743016745641,0.005,86216.0,86207.0,0.006]
[1743016745842,0.231942,86229.0,86207.0,0.006]
[1743016745843,0.005,86217.0,86208.0,0.00231969]
[1743016746051,0.005,86220.0,86209.0,0.11425764]
[1743016747137,0.01816751,86218.0,86209.0,0.11425764]
[1743016747706,0.005,86209.0,86208.0,0.4214842]
[1743016747871,0.005,86209.0,86208.0,0.1444]
[1743016748066,0.005,86210.0,86208.0,0.1384]
[1743016748314,0.005,86214.0,86209.0,0.006]
[1743016748486,0.005,86210.0,86209.0,0.012]
[1743016748697,0.02316768,86210.0,86209.0,0.006]
[1743016749681,0.01816768,86210.0,86209.0,0.006]
[1743016749868,0.01816768,86210.0,86209.0,0.35225164]
[1743016750073,0.01816768,86210.0,86209.0,0.37839149]
[1743016750275,0.01816768,86210.0,86209.0,0.68439149]
[1743016750560,0.01816768,86210.0,86209.0,1.09987569]
[1743016750765,0.005,86231.0,86225.0,0.243547]
[1743016750991,0.005,86231.0,86226.0,0.74088]
[1743016751334,0.01816457,86230.0,86226.0,0.74088]
[1743016751749,0.005,86231.0,86226.0,0.74088]
[1743016751944,0.005,86231.0,86226.0,0.74100556]
[1743016752171,0.005,86239.0,86231.0,0.243528]
[1743016752372,0.005,86249.0,86243.0,0.231901]
[1743016752695,0.000338,86250.0,86247.0,0.231891]
[1743016752900,0.000338,86250.0,86248.0,0.29448763]
[1743016753111,0.000338,86250.0,86249.0,0.091894]
[1743016753328,0.000338,86250.0,86249.0,0.22069249]
[1743016753471,0.000338,86250.0,86249.0,0.20909849]
[1743016754652,0.000338,86250.0,86249.0,0.50909849]
[1743016754824,0.000338,86250.0,86249.0,0.62335613]
[1743016755053,0.000338,86250.0,86249.0,0.63495013]
[1743016755414,0.000338,86250.0,86249.0,0.62335613]
[1743016755580,0.000338,86250.0,86249.0,0.62935613]
[1743016756277,0.000338,86250.0,86249.0,1.05643433]
[1743016757059,0.000338,86250.0,86249.0,1.28832033]
[1743016757280,0.000338,86250.0,86249.0,1.29432033]
[1743016757853,0.000338,86250.0,86249.0,1.28832033]
[1743016758055,0.0003378,86260.0,86259.0,0.243451]
[1743016758259,0.0003378,86260.0,86259.0,1.45464136]
[1743016759247,0.00076762,86260.0,86259.0,1.46064136]
[1743016759444,0.00076762,86260.0,86259.0,1.43804136]
[1743016759746,0.00076762,86260.0,86259.0,1.44363336]
[1743016760517,0.00076762,86260.0,86259.0,1.85911756]
[1743016760928,0.00076762,86260.0,86259.0,1.81728569]
[1743016761114,0.00076762,86260.0,86259.0,1.84678243]
[1743016761533,0.00076762,86260.0,86259.0,1.85278243]
[1743016762520,0.00076762,86260.0,86259.0,1.71446243]
[1743016762741,0.00076762,86260.0,86259.0,1.85278243]
[1743016762896,0.00076762,86260.0,86259.0,1.96704007]
[1743016763508,0.00076762,86260.0,86259.0,1.85219843]
[1743016763694,0.00076762,86260.0,86259.0,1.86379043]
[1743016765288,0.00076762,86260.0,86259.0,1.48201943]
[1743016765675,0.00076762,86260.0,86259.0,1.62033943]
[1743016765807,0.00076762,86260.0,86259.0,1.85219843]
[1743016766013,0.00076762,86260.0,86259.0,1.73459707]
[1743016766211,0.01892406,86260.0,86259.0,1.73459707]
[1743016766661,0.01892406,86260.0,86259.0,1.96645607]
[1743016766807,0.01892406,86260.0,86259.0,1.73459707]
[1743016767857,0.01892406,86260.0,86259.0,1.96645607]
[1743016768201,0.01892406,86260.0,86259.0,1.73459707]
[1743016768975,0.01892406,86260.0,86259.0,1.72001622]
[1743016769540,0.00076762,86260.0,86259.0,1.72001622]
[1743016769740,0.01892436,86260.0,86259.0,1.72001622]
[1743016769943,0.01892436,86260.0,86259.0,1.95187522]
[1743016771298,0.01892436,86260.0,86259.0,1.60575858]
[1743016771954,0.01892436,86260.0,86259.0,1.0297242]
[1743016771955,0.02392436,86260.0,86259.0,1.0297242]
[1743016772713,0.00076762,86260.0,86259.0,1.0237242]
[1743016772916,0.00076762,86260.0,86259.0,1.1620042]
[1743016773116,0.00076762,86260.0,86259.0,1.1680042]
[1743016773370,0.00076762,86260.0,86259.0,1.0297242]
[1743016773751,0.00076762,86260.0,86259.0,1.0237242]
[1743016774173,0.00076762,86260.0,86259.0,1.0297242]
[1743016774848,0.00076762,86260.0,86259.0,1.0237242]
[1743016775092,0.00076762,86260.0,86259.0,1.0297242]
[1743016775338,0.00076762,86260.0,86259.0,1.0237242]
[1743016775810,0.00076762,86260.0,86259.0,1.0297242]
[1743016776027,0.01892532,86260.0,86259.0,1.0297242]
[1743016779110,0.01892532,86260.0,86259.0,1.1680042]
[1743016779927,0.01892532,86260.0,86259.0,1.1681735]
[1743016781809,0.00076762,86260.0,86259.0,1.39668878]
[1743016782347,0.00076762,86260.0,86259.0,1.28243114]
[1743016786081,0.01892493,86260.0,86259.0,1.28243114]
[1743016786259,0.01892493,86260.0,86259.0,1.51429014]
[1743016786598,0.01892493,86260.0,86259.0,1.28243114]
[1743016786892,0.01892493,86260.0,86259.0,1.31865508]
[1743016787133,0.01892493,86260.0,86259.0,1.39266999]
[1743016788081,0.01892493,86260.0,86259.0,1.93906984]
[1743016788289,0.01892493,86260.0,86259.0,1.95066184]
[1743016792412,0.50025233,86277.0,86273.0,0.011591]
[1743016792667,0.50025233,86277.0,86274.0,0.28872158]
[1743016792799,0.50025233,86277.0,86275.0,0.07662695]
[1743016793006,0.50025233,86277.0,86276.0,0.15048158]
[1743016793490,0.50025233,86277.0,86276.0,0.11425764]
[1743016794372,0.50025233,86277.0,86276.0,0.34607164]
[1743016795324,0.50025233,86277.0,86276.0,0.12025764]
[1743016795475,0.50025233,86277.0,86276.0,0.4354243]
[1743016795658,0.50025233,86277.0,86276.0,0.4470143]
[1743016795847,0.50025233,86277.0,86276.0,0.4354243]
[1743016796045,0.50025233,86277.0,86276.0,0.4470143]
[1743016796377,0.50025233,86277.0,86276.0,0.8056103]
[1743016796577,0.50025233,86277.0,86276.0,0.96007164]
[1743016796782,0.50025233,86277.0,86276.0,1.28620249]
[1743016796984,0.50025233,86277.0,86276.0,1.34541057]
[1743016797186,0.50025233,86277.0,86276.0,1.76089477]
[1743016797363,0.50025233,86277.0,86276.0,1.87515241]
[1743016797566,0.02015252,86299.0,86298.0,0.543342]
[1743016797767,0.02015252,86299.0,86298.0,1.22582469]
[1743016798487,0.002,86299.0,86298.0,1.22582469]
[1743016798693,0.002,86299.0,86298.0,1.34858624]
[1743016798937,0.002,86299.0,86298.0,1.3487118]
[1743016799291,0.000338,86326.0,86308.0,0.55785485]
[1743016799471,0.000338,86326.0,86308.0,1.28588803]
[1743016799673,0.005,86323.0,86308.0,1.04257403]
[1743016799859,0.005,86323.0,86308.0,1.21118262]
[1743016800059,0.01814553,86316.0,86308.0,1.21118262]
[1743016800266,0.01814553,86316.0,86308.0,1.19959662]
[1743016800784,0.01814553,86316.0,86308.0,1.21118262]
[1743016801698,0.000338,86326.0,86308.0,1.33489662]
[1743016801902,0.000338,86326.0,86325.0,0.55780685]
[1743016802200,0.000338,86326.0,86325.0,0.8842394]
[1743016802560,0.000338,86326.0,86325.0,0.6409734]
[1743016802925,0.000338,86326.0,86325.0,0.5028134]
[1743016803127,0.000338,86326.0,86325.0,0.64109896]
[1743016803718,0.000338,86326.0,86325.0,0.66470442]
[1743016803927,0.000338,86326.0,86325.0,0.67070442]
[1743016804165,0.00024007,86326.0,86325.0,0.67670442]
[1743016804364,0.00024007,86326.0,86325.0,0.66216357]
[1743016804566,0.00524007,86326.0,86325.0,0.15028556]
[1743016804996,0.00524007,86326.0,86325.0,0.2645432]
[1743016804997,0.00024007,86326.0,86325.0,0.2645432]
[1743016805206,0.01838404,86326.0,86325.0,0.2645432]
[1743016805728,0.01838404,86326.0,86325.0,0.27908405]
[1743016805902,0.01838404,86326.0,86325.0,0.30928731]
[1743016806102,0.01838404,86326.0,86325.0,0.18048882]
[1743016806814,0.02338404,86326.0,86325.0,0.18048882]
[1743016808082,0.02338404,86326.0,86325.0,0.04232882]
[1743016808226,0.02338404,86326.0,86325.0,0.15024556]
[1743016808999,0.00524007,86326.0,86325.0,0.15024556]
[1743016809214,0.02338399,86326.0,86325.0,0.15024556]
[1743016809824,0.00024007,86326.0,86325.0,0.15024556]
[1743016810531,0.00024007,86326.0,86325.0,0.75192556]
[1743016810875,0.16491348,86326.0,86325.0,0.01212556]
[1743016811077,0.16491348,86326.0,86325.0,0.61380556]
[1743016811078,0.14102307,86326.0,86325.0,0.61380556]
[1743016812008,0.37270207,86326.0,86325.0,0.60780556]
[1743016812209,0.37270207,86326.0,86325.0,0.60180556]
[1743016812453,0.37270207,86326.0,86325.0,0.60780556]
[1743016813290,0.48695971,86326.0,86325.0,0.60780556]
[1743016813488,0.48695971,86326.0,86325.0,0.61280556]
[1743016813808,0.49875279,86326.0,86325.0,0.61280556]
[1743016814240,0.48695971,86326.0,86325.0,0.60780556]
[1743016814607,0.48695971,86326.0,86325.0,0.60980556]
[1743016815202,0.48695971,86326.0,86325.0,0.60180556]
[1743016815382,0.48695971,86326.0,86275.0,0.10370956]
[1743016815383,0.005,86289.0,86275.0,0.10370956]
[1743016815599,0.005,86287.0,86284.0,0.13812]
[1743016815980,0.005,86287.0,86285.0,0.3]
[1743016816179,0.005,86287.0,86285.0,0.31169223]
[1743016816343,0.005,86287.0,86285.0,0.01169223]
[1743016816547,0.005,86287.0,86284.0,0.13812]
[1743016817079,0.005,86287.0,86284.0,0.14412]
[1743016817242,0.0476,86292.0,86286.0,0.231786]
[1743016817442,0.0755,86302.0,86287.0,0.05328366]
[1743016817751,0.0463,86305.0,86287.0,0.05328366]
[1743016817752,0.005,86304.0,86295.0,0.231762]
[1743016817980,0.005,86309.0,86297.0,0.24629685]
[1743016818198,0.005,86307.0,86298.0,0.11657479]
[1743016818398,0.005,86307.0,86299.0,0.13812]
[1743016818598,0.005,86307.0,86300.0,0.11425764]
[1743016819266,0.005,86293.0,86286.0,0.006]
[1743016819476,0.005,86293.0,86288.0,0.3]
[1743016819673,0.011586,86306.0,86288.0,0.3]
[1743016819674,0.005,86297.0,86290.0,0.3]
[1743016819974,0.005,86297.0,86295.0,0.004]
[1743016820397,0.005,86297.0,86292.0,0.3]
[1743016820600,0.005,86297.0,86292.0,0.41425764]
[1743016821207,0.005,86306.0,86294.0,0.55789185]
[1743016821432,0.01814903,86301.0,86295.0,0.11425764]
[1743016821593,0.01814903,86301.0,86295.0,0.18328654]
[1743016821976,0.01814903,86301.0,86296.0,0.6018]
[1743016822193,0.01814903,86301.0,86297.0,0.11425764]
[1743016822823,0.005,86297.0,86296.0,0.6018]
[1743016823019,0.329544,86297.0,86296.0,0.6018]
[1743016823202,0.0862,86297.0,86296.0,0.6018]
[1743016823728,0.329544,86297.0,86296.0,0.6018]
[1743016823875,0.375244,86297.0,86296.0,0.6018]
[1743016824197,0.375244,86297.0,86296.0,0.6078]
[1743016824396,0.325244,86297.0,86296.0,0.6018]
[1743016824797,0.325244,86297.0,86296.0,0.6078]
[1743016825112,0.325244,86297.0,86296.0,0.6138]
[1743016826162,0.313657,86297.0,86296.0,0.6138]
[1743016826364,0.325244,86297.0,86296.0,0.6138]
[1743016827546,0.325244,86297.0,86296.0,0.6139691]
[1743016828717,0.325244,86297.0,86296.0,0.6079691]
[1743016829125,0.325244,86297.0,86296.0,0.6119691]
[1743016829492,0.325244,86297.0,86296.0,0.6059691]
[1743016830459,0.325244,86297.0,86296.0,0.6089691]
[1743016830827,0.313657,86297.0,86296.0,0.6089691]
[1743016831235,0.325244,86297.0,86296.0,0.6089691]
[1743016834715,0.43950164,86297.0,86296.0,0.6089691]
[1743016835795,0.43950164,86297.0,86296.0,0.6049691]
[1743016836440,0.43950164,86297.0,86296.0,0.6019691]
[1743016836896,0.43950164,86297.0,86296.0,0.6039691]
[1743016837311,0.43950164,86297.0,86296.0,0.6069691]
[1743016837587,0.45765468,86297.0,86296.0,0.0051691]
[1743016839667,0.45799308,86297.0,86296.0,0.0051691]
[1743016842755,0.43984004,86297.0,86296.0,0.0051691]
[1743016843106,0.73984004,86297.0,86296.0,0.0051691]
[1743016843539,0.73984004,86297.0,86275.0,0.00012613]
[1743016843540,0.243404,86276.0,86275.0,0.00012613]
[1743016843713,0.35766164,86276.0,86275.0,0.00012613]
[1743016844072,0.243471,86252.0,86251.0,0.59715543]
[1743016844412,0.243471,86252.0,86251.0,0.59719747]
[1743016845041,0.011592,86259.0,86251.0,0.59719747]
[1743016845260,0.231862,86258.0,86251.0,0.59719747]
[1743016845513,0.231867,86257.0,86251.0,0.60319747]
[1743016845921,0.011592,86259.0,86251.0,0.59719747]
[1743016846226,0.231867,86256.0,86251.0,0.60319747]
[1743016846434,0.011593,86255.0,86251.0,0.60319747]
[1743016846633,0.243471,86252.0,86251.0,0.60319747]
[1743016846804,0.243466,86254.0,86251.0,0.60319747]
[1743016847006,0.243466,86255.0,86251.0,0.60319747]
[1743016847007,0.231873,86255.0,86251.0,0.60319747]
[1743016847207,0.231869,86256.0,86251.0,0.60319747]
[1743016847411,0.231869,86256.0,86251.0,0.60919747]
[1743016847616,0.231865,86257.0,86251.0,0.59719747]
[1743016847818,0.231865,86257.0,86251.0,0.60319747]
[1743016848144,0.243445,86262.0,86251.0,0.60919747]
[1743016848346,0.23183,86271.0,86251.0,0.71745511]
[1743016848551,0.231787,86286.0,86265.0,0.231841]
[1743016848747,0.28009572,86290.0,86267.0,0.011591]
[1743016848748,0.011588,86290.0,86267.0,0.011591]
[1743016848978,0.24993229,86291.0,86269.0,0.0809]
[1743016849183,0.243364,86290.0,86270.0,0.34840257]
[1743016849394,0.231782,86288.0,86271.0,0.08223976]
[1743016849618,0.231782,86288.0,86269.0,0.0809]
[1743016849619,0.011588,86289.0,86272.0,0.11657555]
[1743016849962,0.01815829,86291.0,86273.0,0.311591]
[1743016850146,0.01815829,86291.0,86274.0,0.35998247]
[1743016850439,0.0003384,86297.0,86277.0,0.01159]
[1743016850670,0.0003384,86297.0,86284.0,0.01454085]
[1743016850875,0.0003384,86297.0,86283.0,0.011589]
[1743016850876,0.0003384,86297.0,86289.0,0.01454085]
[1743016851077,0.0003384,86297.0,86293.0,0.01454085]
[1743016851286,0.0003384,86297.0,86294.0,0.11657488]
[1743016851601,0.0003384,86297.0,86295.0,0.11425764]
[1743016852228,0.0003384,86297.0,86296.0,0.00231727]
[1743016852485,0.0003384,86297.0,86296.0,0.11657491]
[1743016853773,0.0003384,86297.0,86296.0,0.12257491]
[1743016854347,0.0003384,86297.0,86296.0,0.44870376]
[1743016854603,0.0003384,86297.0,86296.0,0.53258169]
[1743016855164,0.0003384,86297.0,86296.0,0.53858169]
[1743016855362,0.0003384,86297.0,86296.0,0.65283933]
[1743016855962,0.0003384,86297.0,86296.0,0.64683933]
[1743016856166,0.0003384,86297.0,86296.0,0.68943933]
[1743016856364,0.0003384,86297.0,86296.0,0.69543933]
[1743016856598,0.0003384,86297.0,86296.0,0.70143933]
[1743016858714,0.01348446,86304.0,86303.0,0.011587]
[1743016858913,0.01348446,86304.0,86303.0,0.65970607]
[1743016859121,0.00024007,86326.0,86311.0,0.3]
[1743016859287,0.00024007,86326.0,86313.0,0.31454085]
[1743016859486,0.00024007,86326.0,86315.0,0.31454085]
[1743016859689,0.00024007,86326.0,86316.0,0.78218969]
[1743016860013,0.23192107,86326.0,86316.0,0.78218969]
[1743016860217,0.23192107,86326.0,86316.0,0.60188]
[1743016860218,0.24350407,86326.0,86316.0,0.60188]
[1743016860419,0.23192107,86326.0,86316.0,0.60188]
[1743016860805,0.00024007,86326.0,86316.0,0.60188]
[1743016860999,0.231698,86320.0,86316.0,0.60188]
[1743016861319,0.231698,86320.0,86316.0,0.60288]
[1743016861320,0.231696,86320.0,86316.0,0.60288]
[1743016861487,0.231684,86325.0,86317.0,0.090288]
[1743016861915,0.231684,86325.0,86316.0,0.60488]
[1743016862107,0.231688,86323.0,86316.0,0.60488]
[1743016862310,0.0181451,86324.0,86316.0,0.60288]
[1743016862311,0.243289,86317.0,86316.0,0.60288]
[1743016862534,0.243289,86317.0,86316.0,0.60688]
[1743016862708,0.243289,86317.0,86316.0,0.60588]
[1743016863159,0.323189,86317.0,86316.0,0.60888]
[1743016863387,0.323189,86317.0,86316.0,0.60588]
[1743016863712,0.323189,86317.0,86316.0,0.60488]
[1743016863713,0.311604,86317.0,86316.0,0.60488]
[1743016863915,0.323189,86317.0,86316.0,0.60488]
[1743016864111,0.323189,86317.0,86316.0,0.60788]
[1743016864394,0.243289,86317.0,86316.0,0.60788]
[1743016864798,0.243289,86317.0,86316.0,0.60488]
[1743016864948,0.243289,86317.0,86316.0,0.60988]
[1743016865495,0.231701,86318.0,86316.0,0.60988]
[1743016865694,0.231704,86317.0,86316.0,0.60988]
[1743016866099,0.243289,86317.0,86316.0,0.60988]
[1743016866454,0.231698,86320.0,86316.0,0.60988]
[1743016866660,0.231704,86317.0,86316.0,0.60988]
[1743016867001,0.24985087,86317.0,86316.0,0.60488]
[1743016867176,0.24985087,86317.0,86316.0,0.662368]
[1743016867177,0.01814687,86317.0,86316.0,0.662368]
[1743016867375,0.01814687,86317.0,86316.0,0.60888]
[1743016867777,0.01814687,86317.0,86316.0,0.60188]
[1743016867980,0.24985087,86317.0,86316.0,0.60188]
[1743016868231,0.24985087,86317.0,86316.0,0.60688]
[1743016868577,0.26143587,86317.0,86316.0,0.60688]
[1743016868772,0.24985087,86317.0,86316.0,0.60688]
[1743016869047,0.24985087,86317.0,86316.0,0.60988]
[1743016869426,0.01814687,86317.0,86316.0,0.670868]
[1743016869602,0.01814687,86317.0,86316.0,1.28196949]
[1743016870204,0.32689572,86350.0,86325.0,0.55780685]
[1743016870423,0.32689572,86350.0,86325.0,0.81002449]
[1743016870687,0.01838241,86326.0,86325.0,0.81002449]
[1743016870881,0.01838241,86326.0,86325.0,0.92428213]
[1743016871587,0.01838241,86326.0,86325.0,0.92432417]
[1743016871791,0.01838241,86326.0,86325.0,0.93032417]
[1743016872241,0.00024007,86326.0,86325.0,0.93032417]
[1743016872367,0.00024007,86326.0,86325.0,1.00692417]
[1743016873153,0.00024007,86326.0,86325.0,1.00092417]
[1743016873532,0.00024007,86326.0,86325.0,1.01292417]
[1743016873942,0.00024007,86326.0,86325.0,1.00692417]
[1743016874355,0.00024007,86326.0,86325.0,1.0215775]
[1743016874778,7e-08,86326.0,86325.0,1.0215775]
[1743016875528,6.7e-07,86337.0,86336.0,0.243235]
[1743016875732,6.7e-07,86337.0,86336.0,0.80293939]
[1743016875932,0.0131322,86352.0,86345.0,0.543209]
[1743016876177,0.0131322,86352.0,86345.0,0.80992749]
[1743016876678,0.02,86358.0,86357.0,0.531596]
[1743016876970,0.02,86358.0,86357.0,1.31364509]
[1743016877507,0.002,86359.0,86357.0,1.31364509]
[1743016877508,0.002,86359.0,86358.0,0.35636596]
[1743016877705,0.002,86359.0,86358.0,0.44037749]
[1743016877857,0.002,86359.0,86358.0,0.45212387]
[1743016878057,0.0024305,86359.0,86358.0,0.45212387]
[1743016878264,0.0024305,86359.0,86358.0,0.56638151]
[1743016878586,0.0024305,86359.0,86358.0,0.56458151]
[1743016878963,0.0024305,86359.0,86358.0,0.61786129]
[1743016879165,0.0024305,86359.0,86358.0,0.62286129]
[1743016879363,5e-07,86359.0,86358.0,0.63149978]
[1743016879567,5e-07,86359.0,86358.0,0.60125367]
[1743016879787,0.01813251,86390.0,86376.0,0.55766285]
[1743016879984,0.01813251,86390.0,86376.0,0.92410017]
[1743016880957,0.00024071,86377.0,86376.0,0.92410017]
[1743016881422,0.00024071,86377.0,86376.0,0.93010017]
[1743016882187,0.00024071,86377.0,86376.0,0.93006017]
[1743016882387,0.00024071,86377.0,86376.0,0.95321679]
[1743016882585,0.00024071,86377.0,86376.0,0.80937679]
[1743016882786,0.00024071,86377.0,86376.0,0.94721679]
[1743016882995,0.00024071,86377.0,86376.0,0.95321679]
[1743016883423,0.24458583,86410.0,86391.0,0.011575]
[1743016883624,0.231458,86409.0,86392.0,0.85353764]
[1743016883830,0.231458,86409.0,86393.0,0.0498059]
[1743016884033,0.0477,86411.0,86393.0,0.16406354]
[1743016884228,0.0477,86411.0,86394.0,0.13784]
[1743016884391,0.0477,86411.0,86394.0,0.369336]
[1743016884588,0.0477,86411.0,86395.0,0.34575164]
[1743016884818,0.0477,86411.0,86396.0,0.0430316]
[1743016885013,0.0477,86411.0,86397.0,0.11425764]
[1743016885578,0.0477,86411.0,86405.0,0.231466]
[1743016885779,0.0477,86411.0,86398.0,0.243059]
[1743016885908,0.0477,86411.0,86399.0,0.11425764]
[1743016886111,0.0477,86411.0,86400.0,0.03067032]
[1743016886112,0.00231788,86410.0,86400.0,0.03067032]
[1743016886318,0.231457,86409.0,86400.0,0.16851032]
[1743016886714,0.243026,86410.0,86400.0,0.13788204]
[1743016886906,0.243026,86410.0,86405.0,0.007]
[1743016887106,0.01812847,86407.0,86405.0,0.004]
[1743016887557,0.01812847,86407.0,86400.0,0.14088204]
[1743016887773,0.01812847,86407.0,86400.0,0.14488204]
[1743016887944,0.01812847,86407.0,86401.0,0.01993599]
[1743016888554,0.01812847,86407.0,86400.0,0.00404204]
[1743016888755,0.24959147,86407.0,86401.0,0.1378]
[1743016888939,0.01812847,86407.0,86401.0,0.1378]
[1743016889282,0.01812847,86407.0,86405.0,0.003]
[1743016889417,0.01812847,86407.0,86405.0,0.007]
[1743016889841,0.01812847,86407.0,86406.0,0.0144842]
[1743016890676,0.01812847,86407.0,86401.0,0.1378]
[1743016890879,0.01812847,86407.0,86400.0,4.204e-05]
[1743016891077,0.01812847,86407.0,86406.0,0.006]
[1743016891281,0.01812847,86407.0,86406.0,0.011]
[1743016891705,0.24959047,86407.0,86406.0,0.011]
[1743016891877,0.01812847,86407.0,86406.0,0.03730597]
[1743016892440,0.24959047,86407.0,86406.0,0.03130597]
[1743016892722,0.23146,86408.0,86406.0,0.03130597]
[1743016893224,0.23146,86408.0,86406.0,0.005]
[1743016893462,0.23146,86408.0,86406.0,0.006]
[1743016893664,0.0001693,86410.0,86406.0,0.006]
[1743016893805,0.0001693,86410.0,86402.0,0.13776]
[1743016894014,0.0001693,86410.0,86403.0,0.11425764]
[1743016894236,0.0001693,86410.0,86406.0,0.011]
[1743016894539,0.0001693,86410.0,86407.0,0.11657212]
[1743016894764,0.0001693,86410.0,86407.0,0.11425764]
[1743016895707,0.01829621,86410.0,86407.0,0.11425764]
[1743016896489,0.01829621,86410.0,86408.0,0.3]
[1743016896710,0.0001693,86410.0,86409.0,0.74299874]
[1743016897742,0.0001693,86410.0,86409.0,1.34415874]
[1743016897948,0.0001693,86410.0,86409.0,1.35015874]
[1743016898566,0.01829483,86410.0,86409.0,1.35015874]
[1743016898769,0.01829483,86410.0,86409.0,1.37303337]
[1743016898981,0.0003386,86413.0,86412.0,0.242781]
[1743016899185,0.0003386,86424.0,86418.0,0.543004]
[1743016899351,0.0003386,86424.0,86418.0,0.78341064]
[1743016899551,0.0003386,86424.0,86418.0,0.79498164]
[1743016900382,0.0003386,86424.0,86418.0,0.81819179]
[1743016900533,0.0003386,86424.0,86418.0,0.91321146]
[1743016900736,0.0008439,86419.0,86418.0,0.92521146]
[1743016901006,0.0008439,86419.0,86418.0,0.91921146]
[1743016901174,0.00032449,86424.0,86423.0,0.542989]
[1743016901372,0.00497356,86439.0,86423.0,0.35724664]
[1743016901614,0.00497356,86439.0,86424.0,0.44062101]
[1743016901758,0.00497356,86439.0,86424.0,0.14062101]
[1743016901961,0.00497356,86439.0,86425.0,0.3]
[1743016902186,0.00497356,86439.0,86426.0,0.23141]
[1743016902401,0.00497356,86439.0,86425.0,0.531414]
[1743016902640,0.00497356,86439.0,86426.0,0.2234321]
[1743016902641,0.01812154,86436.0,86426.0,0.2234321]
[1743016903253,0.01812154,86436.0,86425.0,0.005]
[1743016903254,0.011569,86434.0,86425.0,0.005]
[1743016903457,0.082,86432.0,86427.0,0.60084]
[1743016904806,0.082,86432.0,86427.0,0.60484]
[1743016905881,0.01157,86429.0,86427.0,0.60484]
[1743016906078,0.242976,86428.0,86427.0,0.60984]
[1743016906608,0.24952878,86429.0,86427.0,0.60984]
[1743016906904,0.24952878,86429.0,86427.0,0.60484]
[1743016907118,0.231406,86428.0,86427.0,0.60684]
[1743016907264,0.242976,86428.0,86427.0,0.60684]
[1743016907467,0.242976,86428.0,86427.0,0.61184]
[1743016907893,0.242976,86428.0,86427.0,0.60684]
[1743016908087,0.242976,86428.0,86427.0,0.61184]
[1743016908293,0.242976,86428.0,86427.0,0.60584]
[1743016908517,0.290176,86428.0,86427.0,0.60584]
[1743016908719,0.290176,86428.0,86427.0,0.61184]
[1743016909451,0.290176,86428.0,86427.0,0.60684]
[1743016909797,0.290176,86428.0,86427.0,0.61184]
[1743016910010,0.30829923,86428.0,86427.0,0.61184]
[1743016912732,0.290176,86428.0,86427.0,0.61184]